fUST/lending_fUST_20250103
["ID","MTS","AMOUNT","RATE_DAILY","PERIOD"]
[347491943,1735873850357,-151.0,0.000201,4]
[347491944,1735873850366,-743.88343341,0.00020107,2]
[347491945,1735873850376,-743.88343341,0.0002021,2]
[347491946,1735873850386,-6846.73,0.00020273,3]
[347491947,1735873850395,-500.0,0.00020273,3]
[347491948,1735873850406,-500.0,0.00020273,3]
[347491949,1735873850415,-500.0,0.00020273,3]
[347491950,1735873850424,-500.0,0.00020273,3]
[347491951,1735873850434,-506.55588306,0.00020273,3]
[347491952,1735873850444,-500.0,0.00020273,3]
[347491953,1735873850453,-500.0,0.00020273,3]
[347491954,1735873850463,-6217.16,0.00020273,3]
[347491955,1735873850472,-500.0,0.00020273,3]
[347491956,1735873850481,-666.52,0.00020273,3]
[347491957,1735873850491,-512.37726325,0.00020273,3]
[347491958,1735873850499,-686.81,0.00020273,3]
[347491959,1735873850509,-506.45,0.00020273,2]
[347491960,1735873850518,-546.48,0.00020273,3]
[347491961,1735873850528,-516.0355685,0.00020273,3]
[347491962,1735873850537,-794.68,0.00020273,3]
[347491963,1735873850548,-500.0,0.00020273,3]
[347491964,1735873850558,-514.08563605,0.00020273,3]
[347491965,1735873850567,-500.0,0.00020273,3]
[347491966,1735873850576,-500.0,0.00020273,3]
[347491967,1735873850585,-204.30371457,0.00020273,3]
[347491968,1735873850594,-161.14500532,0.00020273,3]
[347491969,1735873850604,-500.0,0.00020273,3]
[347491970,1735873850613,-500.0,0.00020273,3]
[347491971,1735873850624,-581.90450218,0.00020273,3]
[347491972,1735873850633,-500.0,0.00020273,3]
[347491973,1735873850643,-637.86,0.00020273,3]
[347491975,1735873850653,-500.0,0.00020273,3]
[347491977,1735873850662,-853.39,0.00020273,3]
[347491978,1735873850671,-500.0,0.00020273,3]
[347491980,1735873850681,-562.12,0.00020273,3]
[347491982,1735873850691,-885.68,0.00020273,3]
[347491984,1735873850701,-535.57,0.00020273,3]
[347491986,1735873850710,-784.37,0.00020273,3]
[347491988,1735873850720,-1288.07,0.00020273,3]
[347491990,1735873850729,-1131.64,0.00020273,3]
[347491992,1735873850739,-901.92,0.00020273,3]
[347491994,1735873850748,-500.0,0.00020273,3]
[347491996,1735873850758,-1073.39,0.00020273,3]
[347491998,1735873850768,-500.0,0.00020273,3]
[347492000,1735873850777,-500.0,0.00020273,3]
[347492002,1735873850786,-618.94,0.00020273,3]
[347492004,1735873850796,-636.27,0.00020273,3]
[347492006,1735873850805,-710.73,0.00020273,3]
[347492008,1735873850815,-500.0,0.00020273,3]
[347492010,1735873850824,-500.0,0.00020273,3]
[347492012,1735873850834,-732.88,0.00020273,3]
[347492014,1735873850843,-616.6,0.00020273,3]
[347492016,1735873850853,-565.28,0.00020273,3]
[347492031,1735873850979,-995.06,0.00020273,3]
[347492033,1735873850989,-643.33415849,0.00020273,3]
[347492035,1735873850999,-506.82339489,0.00020273,3]
[347492037,1735873851008,-2253.22,0.00020273,3]
[347492039,1735873851019,-2899.03,0.00020273,3]
[347492041,1735873851029,-500.0,0.00020273,3]
[347492043,1735873851038,-500.0,0.00020273,3]
[347492045,1735873851051,-553.57,0.00020273,3]
[347492047,1735873851060,-618.25,0.00020273,3]
[347492049,1735873851070,-585.3,0.00020273,3]
[347492051,1735873851079,-565.24,0.00020273,3]
[347492053,1735873851089,-757.08,0.00020273,3]
[347492055,1735873851099,-500.0,0.00020273,3]
[347492057,1735873851108,-500.0,0.00020273,3]
[347492059,1735873851118,-500.0,0.00020273,3]
[347492061,1735873851128,-1234.67,0.00020273,3]
[347492063,1735873851138,-5371.44,0.00020273,3]
[347492065,1735873851149,-500.0,0.00020273,3]
[347492067,1735873851159,-552.85,0.00020273,3]
[347492069,1735873851168,-500.0,0.00020273,3]
[347492071,1735873851178,-1361.54,0.00020273,3]
[347492073,1735873851187,-500.0,0.00020273,3]
[347492075,1735873851197,-500.0,0.00020273,3]
[347492077,1735873851206,-500.0,0.00020273,3]
[347492079,1735873851216,-500.0,0.00020273,3]
[347492081,1735873851226,-29975.34,0.00020273,3]
[347492084,1735873851236,-3983.07,0.00020273,3]
[347492086,1735873851246,-686.65,0.00020273,3]
[347492088,1735873851256,-1536.43,0.00020273,3]
[347492090,1735873851265,-500.0,0.00020273,3]
[347492092,1735873851274,-1195.74,0.00020273,3]
[347492094,1735873851283,-859.6,0.00020273,3]
[347492096,1735873851295,-500.0,0.00020273,3]
[347492098,1735873851305,-500.0,0.00020273,3]
[347492100,1735873851313,-941.57,0.00020273,3]
[347492101,1735873851323,-2282.97,0.00020273,3]
[347492104,1735873851332,-500.0,0.00020273,3]
[347492106,1735873851341,-639.51,0.00020273,3]
[347492108,1735873851351,-663.27,0.00020273,3]
[347492110,1735873851360,-2681.04,0.00020273,3]
[347492111,1735873851370,-511.20617414,0.00020273,3]
[347492112,1735873851378,-483.2310717,0.00020273,3]
[347492113,1735873851387,-507.43400812,0.00020273,3]
[347492114,1735873851397,-851.07,0.00020273,3]
[347492115,1735873851406,-583.24036369,0.00020273,3]
[347492116,1735873851416,-1204.86,0.00020273,3]
[347492117,1735873851425,-499.0,0.00020273,2]
[347492118,1735873851433,-500.0,0.00020273,3]
[347492119,1735873851442,-945.91,0.00020273,3]
[347492120,1735873851451,-500.0,0.00020273,3]
[347492121,1735873851461,-500.0,0.00020273,3]
[347492122,1735873851470,-513.67,0.00020273,3]
[347492123,1735873851479,-2104.63,0.00020273,3]
[347492124,1735873851488,-743.88343341,0.00020314,2]
[347492125,1735873851497,-743.88343341,0.00020417,2]
[347492126,1735873851506,-400.0,0.00020447,2]
[347492127,1735873851515,-162.0,0.00020473,2]
[347492128,1735873851524,-162.0,0.00020473,2]
[347492129,1735873851534,-162.0,0.00020473,2]
[347492130,1735873851544,-162.0,0.00020473,2]
[347492131,1735873851553,-162.0,0.00020473,2]
[347492132,1735873851562,-157.0,0.00020473,2]
[347492133,1735873851571,-162.0,0.00020473,2]
[347492134,1735873851581,-157.0,0.00020473,2]
[347492135,1735873851590,-162.0,0.00020473,2]
[347492136,1735873851599,-162.0,0.00020473,2]
[347492137,1735873851608,-187.0,0.00020473,2]
[347492138,1735873851618,-162.0,0.00020473,2]
[347492139,1735873851627,-181.261897,0.00020521,2]
[347492141,1735873851637,-743.88343341,0.00020521,2]
[347492143,1735873851647,-151.0,0.00020546,2]
[347492145,1735873851657,-6846.73,0.00020547,3]
[347492147,1735873851666,-500.0,0.00020547,3]
[347492149,1735873851676,-500.0,0.00020547,3]
[347492151,1735873851685,-500.0,0.00020547,3]
[347492153,1735873851695,-500.0,0.00020547,3]
[347492155,1735873851704,-500.0,0.00020547,3]
[347492157,1735873851713,-500.0,0.00020547,3]
[347492159,1735873851723,-6217.16,0.00020547,3]
[347492161,1735873851732,-500.0,0.00020547,3]
[347492163,1735873851741,-666.52,0.00020547,3]
[347492165,1735873851751,-686.81,0.00020547,3]
[347492167,1735873851760,-506.45,0.00020547,2]
[347492169,1735873851769,-546.48,0.00020547,3]
[347492171,1735873851778,-794.68,0.00020547,3]
[347492173,1735873851787,-500.0,0.00020547,3]
[347492175,1735873851797,-500.0,0.00020547,3]
[347492177,1735873851807,-500.0,0.00020547,3]
[347492179,1735873851816,-500.0,0.00020547,3]
[347492181,1735873851824,-500.0,0.00020547,3]
[347492183,1735873851834,-522.87235278,0.00020547,3]
[347492185,1735873851843,-637.86,0.00020547,3]
[347492187,1735873851852,-500.0,0.00020547,3]
[347492190,1735873851862,-853.39,0.00020547,3]
[347492192,1735873851871,-510.23810879,0.00020547,3]
[347492194,1735873851881,-562.12,0.00020547,3]
[347492196,1735873851890,-885.68,0.00020547,3]
[347492198,1735873851899,-535.57,0.00020547,3]
[347492200,1735873851909,-784.37,0.00020547,3]
[347492202,1735873851918,-1288.07,0.00020547,3]
[347492204,1735873851927,-1131.64,0.00020547,3]
[347492206,1735873851936,-901.92,0.00020547,3]
[347492208,1735873851945,-500.0,0.00020547,3]
[347492210,1735873851954,-1073.39,0.00020547,3]
[347492212,1735873851963,-500.0,0.00020547,3]
[347492214,1735873851973,-500.0,0.00020547,3]
[347492216,1735873851983,-618.94,0.00020547,3]
[347492218,1735873851992,-636.27,0.00020547,3]
[347492220,1735873852001,-710.73,0.00020547,3]
[347492222,1735873852011,-500.0,0.00020547,3]
[347492224,1735873852020,-732.88,0.00020547,3]
[347492226,1735873852030,-500.0,0.00020547,3]
[347492228,1735873852039,-616.6,0.00020547,3]
[347492230,1735873852050,-565.28,0.00020547,3]
[347492232,1735873852059,-995.06,0.00020547,3]
[347492234,1735873852069,-2253.22,0.00020547,3]
[347492236,1735873852079,-2899.03,0.00020547,3]
[347492238,1735873852087,-500.0,0.00020547,3]
[347492240,1735873852096,-500.0,0.00020547,3]
[347492242,1735873852105,-553.57,0.00020547,3]
[347492244,1735873852115,-618.25,0.00020547,3]
[347492246,1735873852124,-585.3,0.00020547,3]
[347492248,1735873852133,-565.24,0.00020547,3]
[347492250,1735873852143,-757.08,0.00020547,3]
[347492252,1735873852154,-500.0,0.00020547,3]
[347492254,1735873852163,-519.43402763,0.00020547,3]
[347492256,1735873852172,-500.0,0.00020547,3]
[347492258,1735873852182,-1234.67,0.00020547,3]
[347492260,1735873852191,-5371.44,0.00020547,3]
[347492262,1735873852200,-500.0,0.00020547,3]
[347492264,1735873852209,-552.85,0.00020547,3]
[347492266,1735873852219,-500.0,0.00020547,3]
[347492268,1735873852229,-1361.54,0.00020547,3]
[347492270,1735873852238,-430.52915621,0.00020547,3]
[347492272,1735873852248,-500.0,0.00020547,3]
[347492274,1735873852257,-500.0,0.00020547,3]
[347492276,1735873852266,-500.0,0.00020547,3]
[347492278,1735873852276,-29975.34,0.00020547,3]
[347492280,1735873852285,-3983.07,0.00020547,3]
[347492282,1735873852294,-686.65,0.00020547,3]
[347492284,1735873852303,-1536.43,0.00020547,3]
[347492286,1735873852314,-500.0,0.00020547,3]
[347492288,1735873852323,-1195.74,0.00020547,3]
[347492290,1735873852332,-859.6,0.00020547,3]
[347492292,1735873852341,-500.0,0.00020547,3]
[347492294,1735873852350,-500.0,0.00020547,3]
[347492296,1735873852359,-941.57,0.00020547,3]
[347492298,1735873852369,-2282.97,0.00020547,3]
[347492300,1735873852378,-500.0,0.00020547,3]
[347492302,1735873852388,-639.51,0.00020547,3]
[347492304,1735873852398,-663.27,0.00020547,3]
[347492306,1735873852408,-2681.04,0.00020547,3]
[347492308,1735873852417,-851.07,0.00020547,3]
[347492310,1735873852427,-1204.86,0.00020547,3]
[347492312,1735873852440,-500.0,0.00020547,3]
[347492315,1735873852450,-945.91,0.00020547,3]
[347492317,1735873852459,-500.0,0.00020547,3]
[347492319,1735873852468,-500.0,0.00020547,3]
[347492321,1735873852477,-513.67,0.00020547,3]
[347492323,1735873852487,-2104.63,0.00020547,3]
[347492325,1735873852496,-151.0,0.00020548,2]
[347492327,1735873852505,-167.516423,0.00020548,2]
[347492329,1735873852515,-6886.40952827,0.0002061,2]
[347492331,1735873852524,-743.88343341,0.00020624,2]
[347492333,1735873852533,-167.0,0.00020671,2]
[347492335,1735873852542,-167.37,0.00020671,2]
[347492337,1735873852552,-154.0,0.00020673,2]
[347492339,1735873852561,-154.0,0.00020673,2]
[347492341,1735873852571,-154.0,0.00020673,2]
[347492343,1735873852581,-154.0,0.00020673,2]
[347492345,1735873852591,-154.0,0.00020673,2]
[347492347,1735873852600,-154.0,0.00020673,2]
[347492349,1735873852609,-154.0,0.00020673,2]
[347492351,1735873852619,-154.0,0.00020673,2]
[347492353,1735873852628,-154.0,0.00020673,2]
[347492355,1735873852637,-154.0,0.00020673,2]
[347492357,1735873852646,-154.0,0.00020673,2]
[347492359,1735873852655,-154.0,0.00020673,2]
[347492361,1735873852665,-154.0,0.00020673,2]
[347492363,1735873852674,-154.0,0.00020673,2]
[347492365,1735873852683,-154.0,0.00020673,2]
[347492367,1735873852692,-154.0,0.00020673,2]
[347492369,1735873852701,-154.0,0.00020673,2]
[347492371,1735873852710,-154.0,0.00020673,2]
[347492373,1735873852719,-154.0,0.00020673,2]
[347492375,1735873852728,-154.0,0.00020673,2]
[347492377,1735873852737,-154.0,0.00020673,2]
[347492379,1735873852747,-154.0,0.00020673,2]
[347492381,1735873852756,-154.0,0.00020673,2]
[347492383,1735873852765,-154.0,0.00020673,2]
[347492385,1735873852774,-153.0,0.00020701,2]
[347492387,1735873852784,-153.0,0.00020701,2]
[347492389,1735873852794,-153.0,0.00020701,2]
[347492391,1735873852803,-153.0,0.00020701,2]
[347492393,1735873852813,-153.0,0.00020701,2]
[347492395,1735873852822,-153.0,0.00020701,2]
[347492397,1735873852831,-153.0,0.00020701,2]
[347492399,1735873852841,-153.0,0.00020701,2]
[347492401,1735873852851,-153.0,0.00020701,2]
[347492403,1735873852860,-153.0,0.00020701,2]
[347492405,1735873852870,-153.0,0.00020701,2]
[347492407,1735873852879,-315.49172134,0.00020721,2]
[347492409,1735873852888,-743.88343341,0.00020728,2]
[347492411,1735873852898,-352.7299908,0.0002074,2]
[347492413,1735873852907,-352.7299908,0.0002074,2]
[347492415,1735873852916,-352.7299908,0.0002074,2]
[347492417,1735873852925,-306.0714482,0.0002074,2]
[347492419,1735873852935,-23447.6848041,0.0002079,2]
[347492421,1735873852945,-202.063103,0.00020821,2]
[347492423,1735873852954,-6846.73,0.00020821,3]
[347492425,1735873852964,-500.0,0.00020821,3]
[347492427,1735873852973,-500.0,0.00020821,3]
[347492429,1735873852983,-208.54196184,0.00020821,3]
[347492431,1735873852992,-500.0,0.00020821,3]
[347492433,1735873853001,-500.0,0.00020821,3]
[347492435,1735873853010,-500.0,0.00020821,3]
[347492437,1735873853020,-6217.16,0.00020821,3]
[347492439,1735873853028,-292.18364569,0.00020821,3]
[347492440,1735873853038,-666.52,0.00020821,3]
[347492442,1735873853048,-686.81,0.00020821,3]
[347492443,1735873853058,-506.45,0.00020821,2]
[347492445,1735873853067,-546.48,0.00020821,3]
[347492446,1735873853076,-794.68,0.00020821,3]
[347492448,1735873853086,-181.17993975,0.00020821,3]
[347492450,1735873853095,-500.0,0.00020821,3]
[347492451,1735873853104,-500.0,0.00020821,3]
[347492453,1735873853113,-500.0,0.00020821,3]
[347492454,1735873853122,-500.0,0.00020821,3]
[347492456,1735873853131,-637.86,0.00020821,3]
[347492457,1735873853140,-592.19720153,0.00020821,3]
[347492459,1735873853152,-853.39,0.00020821,3]
[347492460,1735873853162,-562.12,0.00020821,3]
[347492462,1735873853171,-885.68,0.00020821,3]
[347492463,1735873853180,-535.57,0.00020821,3]
[347492465,1735873853190,-784.37,0.00020821,3]
[347492467,1735873853199,-1288.07,0.00020821,3]
[347492468,1735873853208,-1131.64,0.00020821,3]
[347492470,1735873853217,-901.92,0.00020821,3]
[347492471,1735873853227,-500.0,0.00020821,3]
[347492473,1735873853236,-1073.39,0.00020821,3]
[347492475,1735873853246,-500.0,0.00020821,3]
[347492476,1735873853255,-500.0,0.00020821,3]
[347492478,1735873853265,-618.94,0.00020821,3]
[347492479,1735873853274,-636.27,0.00020821,3]
[347492481,1735873853283,-710.73,0.00020821,3]
[347492482,1735873853293,-500.0,0.00020821,3]
[347492484,1735873853302,-732.88,0.00020821,3]
[347492486,1735873853312,-500.0,0.00020821,3]
[347492488,1735873853322,-616.6,0.00020821,3]
[347492489,1735873853332,-565.28,0.00020821,3]
[347492491,1735873853342,-995.06,0.00020821,3]
[347492493,1735873853351,-2253.22,0.00020821,3]
[347492494,1735873853361,-2899.03,0.00020821,3]
[347492495,1735873853370,-500.0,0.00020821,3]
[347492497,1735873853379,-500.0,0.00020821,3]
[347492499,1735873853389,-553.57,0.00020821,3]
[347492500,1735873853399,-618.25,0.00020821,3]
[347492502,1735873853408,-585.3,0.00020821,3]
[347492504,1735873853418,-565.24,0.00020821,3]
[347492505,1735873853427,-757.08,0.00020821,3]
[347492507,1735873853436,-500.0,0.00020821,3]
[347492509,1735873853446,-500.0,0.00020821,3]
[347492510,1735873853456,-1234.67,0.00020821,3]
[347492512,1735873853466,-5371.44,0.00020821,3]
[347492514,1735873853475,-353.65714267,0.00020821,3]
[347492515,1735873853484,-552.85,0.00020821,3]
[347492517,1735873853494,-500.0,0.00020821,3]
[347492519,1735873853504,-1361.54,0.00020821,3]
[347492520,1735873853514,-500.0,0.00020821,3]
[347492522,1735873853523,-486.4547865,0.00020821,3]
[347492524,1735873853533,-500.0,0.00020821,3]
[347492525,1735873853543,-29975.34,0.00020821,3]
[347492527,1735873853555,-3983.07,0.00020821,3]
[347492529,1735873853565,-686.65,0.00020821,3]
[347492530,1735873853575,-1536.43,0.00020821,3]
[347492532,1735873853584,-500.0,0.00020821,3]
[347492534,1735873853594,-1195.74,0.00020821,3]
[347492535,1735873853603,-859.6,0.00020821,3]
[347492545,1735873853728,-379.70549924,0.00020821,3]
[347492547,1735873853738,-642.90688575,0.00020821,3]
[347492548,1735873853747,-941.57,0.00020821,3]
[347492550,1735873853757,-2282.97,0.00020821,3]
[347492552,1735873853767,-500.0,0.00020821,3]
[347492553,1735873853776,-639.51,0.00020821,3]
[347492555,1735873853785,-663.27,0.00020821,3]
[347492557,1735873853795,-2681.04,0.00020821,3]
[347492558,1735873853804,-851.07,0.00020821,3]
[347492560,1735873853814,-1204.86,0.00020821,3]
[347492561,1735873853822,-500.0,0.00020821,3]
[347492563,1735873853831,-945.91,0.00020821,3]
[347492565,1735873853841,-500.0,0.00020821,3]
[347492566,1735873853851,-500.0,0.00020821,3]
[347492568,1735873853860,-513.67,0.00020821,3]
[347492569,1735873853869,-2104.63,0.00020821,3]
[347492571,1735873853878,-743.88343341,0.00020831,2]
[347492573,1735873853888,-315.49172131,0.00020926,2]
[347492575,1735873853897,-743.88343341,0.00020934,2]
[347492576,1735873853906,-465.76083749,0.00020964,2]
[347492578,1735873853915,-500.0,0.0002098,7]
[347492579,1735873853925,-500.0,0.0002098,7]
[347492581,1735873853934,-500.0,0.0002098,7]
[347492583,1735873853944,-500.0,0.0002098,7]
[347492585,1735873853953,-500.0,0.0002098,7]
[347492586,1735873853963,-500.0,0.0002098,7]
[347492588,1735873853972,-500.0,0.0002098,7]
[347492589,1735873853981,-500.0,0.0002098,7]
[347492591,1735873853991,-500.0,0.0002098,7]
[347492593,1735873854001,-500.0,0.0002098,7]
[347492595,1735873854011,-500.0,0.0002098,7]
[347492596,1735873854020,-500.0,0.0002098,7]
[347492598,1735873854030,-500.0,0.0002098,7]
[347492600,1735873854039,-500.0,0.0002098,7]
[347492601,1735873854048,-500.0,0.0002098,7]
[347492603,1735873854058,-500.0,0.0002098,7]
[347492605,1735873854069,-500.0,0.0002098,7]
[347492606,1735873854078,-500.0,0.0002098,7]
[347492608,1735873854087,-500.0,0.0002098,7]
[347492609,1735873854096,-500.0,0.0002098,7]
[347492611,1735873854106,-500.0,0.0002098,7]
[347492613,1735873854114,-500.0,0.0002098,7]
[347492614,1735873854123,-500.0,0.0002098,7]
[347492616,1735873854133,-500.0,0.0002098,7]
[347492618,1735873854143,-500.0,0.0002098,7]
[347492619,1735873854155,-500.0,0.0002098,7]
[347492621,1735873854164,-500.0,0.0002098,7]
[347492623,1735873854174,-500.0,0.0002098,7]
[347492624,1735873854183,-500.0,0.0002098,7]
[347492626,1735873854194,-500.0,0.0002098,7]
[347492628,1735873854203,-500.0,0.0002098,7]
[347492629,1735873854212,-500.0,0.0002098,7]
[347492631,1735873854221,-500.0,0.0002098,7]
[347492633,1735873854232,-500.0,0.0002098,7]
[347492634,1735873854242,-500.0,0.0002098,7]
[347492636,1735873854251,-500.0,0.0002098,7]
[347492638,1735873854260,-521.64,0.0002098,7]
[347492639,1735873854269,-500.0,0.0002098,7]
[347492641,1735873854279,-500.0,0.0002098,7]
[347492642,1735873854287,-500.0,0.0002098,7]
[347492644,1735873854298,-500.0,0.0002098,7]
[347492646,1735873854307,-500.0,0.0002098,7]
[347492647,1735873854316,-500.0,0.0002098,7]
[347492649,1735873854325,-500.0,0.0002098,7]
[347492651,1735873854335,-500.0,0.0002098,7]
[347492652,1735873854343,-500.0,0.0002098,7]
[347492654,1735873854353,-500.0,0.0002098,7]
[347492656,1735873854362,-500.0,0.0002098,7]
[347492657,1735873854371,-500.0,0.0002098,7]
[347492659,1735873854381,-500.0,0.0002098,7]
[347492661,1735873854390,-500.0,0.0002098,7]
[347492662,1735873854400,-500.0,0.0002098,7]
[347492664,1735873854410,-500.0,0.0002098,7]
[347492666,1735873854419,-500.0,0.0002098,7]
[347492667,1735873854429,-500.0,0.0002098,7]
[347492669,1735873854438,-500.0,0.0002098,7]
[347492670,1735873854447,-500.0,0.0002098,7]
[347492672,1735873854457,-500.0,0.0002098,7]
[347492674,1735873854467,-500.0,0.0002098,7]
[347492675,1735873854476,-500.0,0.0002098,7]
[347492677,1735873854486,-500.0,0.0002098,7]
[347492679,1735873854495,-500.0,0.0002098,7]
[347492680,1735873854504,-500.0,0.0002098,7]
[347492682,1735873854514,-500.0,0.0002098,7]
[347492684,1735873854523,-500.0,0.0002098,7]
[347492685,1735873854533,-500.0,0.0002098,7]
[347492687,1735873854542,-500.0,0.0002098,7]
[347492689,1735873854552,-500.0,0.0002098,7]
[347492690,1735873854561,-500.0,0.0002098,7]
[347492692,1735873854570,-500.0,0.0002098,7]
[347492694,1735873854580,-500.0,0.0002098,7]
[347492695,1735873854589,-500.0,0.0002098,7]
[347492697,1735873854599,-500.0,0.0002098,7]
[347492699,1735873854608,-500.0,0.0002098,7]
[347492700,1735873854617,-500.0,0.0002098,7]
[347492702,1735873854627,-500.0,0.0002098,7]
[347492704,1735873854637,-480.87,0.0002098,7]
[347492706,1735873854646,-500.0,0.0002098,7]
[347492707,1735873854656,-500.0,0.0002098,7]
[347492709,1735873854665,-154.48,0.0002098,2]
[347492711,1735873854676,-14614.99701735,0.00021,2]
[347492720,1735873854800,-4031.84681078,0.00021,2]
[347492722,1735873854813,-360.0,0.00021,2]
[347492724,1735873854824,-324.22683165,0.00021,2]
[347492726,1735873854835,-716.549999,0.00021,2]
[347492727,1735873854846,-624.614979,0.00021,2]
[347492729,1735873854857,-839.99999992,0.00021,2]
[347492736,1735873854937,-3290.01473372,0.00021,2]
[347492738,1735873854947,-2093.14492759,0.00021,2]
[347492741,1735873854959,-259.59595598,0.00021,2]
[347492743,1735873854971,-493.28256153,0.00021,2]
[347492746,1735873854994,-964.17957643,0.00021,2]
[347492749,1735873855006,-11283.19188132,0.00021,2]
[347492751,1735873855016,-150.0,0.00021,2]
[347492753,1735873855024,-300.34202335,0.00021,2]
[347492755,1735873855034,-217.4461951,0.00021014,2]
[347492757,1735873855043,-231.7936863,0.00021014,2]
[347492759,1735873855054,-154.5575941,0.00021014,2]
[347492761,1735873855063,-214.515006,0.00021014,2]
[347492763,1735873855073,-153.6400067,0.00021014,2]
[347492764,1735873855083,-153.6400067,0.00021014,2]
[347492766,1735873855092,-214.515006,0.00021014,2]
[347492768,1735873855101,-153.6400067,0.00021014,2]
[347492771,1735873855111,-153.6400067,0.00021014,2]
[347492772,1735873855120,-159.0,0.00021023,2]
[347492774,1735873855130,-160.62,0.00021023,2]
[347492776,1735873855139,-250.0,0.00021023,2]
[347492779,1735873855152,-250.0,0.00021023,2]
[347492780,1735873855162,-250.0,0.00021023,2]
[347492781,1735873855171,-250.0,0.00021023,2]
[347492782,1735873855180,-250.0,0.00021023,2]
[347492783,1735873855190,-250.0,0.00021023,2]
[347492784,1735873855200,-250.0,0.00021023,2]
[347492785,1735873855209,-250.0,0.00021023,2]
[347492786,1735873855219,-250.0,0.00021023,2]
[347492787,1735873855228,-250.0,0.00021023,2]
[347492788,1735873855238,-250.0,0.00021023,2]
[347492789,1735873855247,-250.0,0.00021023,2]
[347492790,1735873855256,-250.0,0.00021023,2]
[347492791,1735873855266,-250.0,0.00021023,2]
[347492792,1735873855276,-250.0,0.00021023,2]
[347492793,1735873855285,-250.0,0.00021023,2]
[347492794,1735873855295,-250.0,0.00021023,2]
[347492795,1735873855305,-250.0,0.00021023,2]
[347492796,1735873855315,-250.0,0.00021023,2]
[347492797,1735873855324,-250.0,0.00021023,2]
[347492798,1735873855333,-250.0,0.00021023,2]
[347492799,1735873855343,-250.0,0.00021023,2]
[347492800,1735873855352,-250.0,0.00021023,2]
[347492801,1735873855362,-250.0,0.00021023,2]
[347492802,1735873855372,-250.0,0.00021023,2]
[347492803,1735873855381,-250.0,0.00021023,2]
[347492804,1735873855391,-250.0,0.00021023,2]
[347492805,1735873855401,-250.0,0.00021023,2]
[347492806,1735873855410,-250.0,0.00021023,2]
[347492807,1735873855419,-250.0,0.00021023,2]
[347492808,1735873855429,-250.0,0.00021023,2]
[347492809,1735873855439,-250.0,0.00021023,2]
[347492810,1735873855448,-250.0,0.00021023,2]
[347492811,1735873855458,-250.0,0.00021023,2]
[347492812,1735873855467,-250.0,0.00021023,2]
[347492813,1735873855477,-250.0,0.00021023,2]
[347492814,1735873855486,-250.0,0.00021023,2]
[347492815,1735873855495,-274.35,0.00021023,2]
[347492816,1735873855505,-743.88343341,0.00021038,2]
[347492817,1735873855515,-153.3,0.00021087,2]
[347492818,1735873855524,-6846.73,0.00021095,3]
[347492819,1735873855534,-500.0,0.00021095,3]
[347492820,1735873855544,-500.0,0.00021095,3]